[Event "Charlotte Thanksgiving GM 2020"]
[Site "Charlotte"]
[Date "2020.11.30"]
[Round "9.1"]
[White "Gauri, Shankar"]
[Black "Tokhirjonova, Gulrukhbegim"]
[Result "1/2-1/2"]
[ECO "D02"]
[WhiteElo "2356"]
[BlackElo "2378"]
[Annotator "ChessBase"]
[PlyCount "92"]
[EventDate "2020.11.26"]
[EventType "tourn"]
[EventCountry "USA"]
[SourceTitle "playchess.com"]
[Source "ChessBase"]
[SourceQuality "1"]
[TimeControl "5400+30"]

1. Nf3 {[%emt 1:30:30]} Nf6 {[%emt 1:30:30]} 2. g3 {[%emt 0:00:30]} d5 {[%emt 0:00:30]} 3. Bg2 {[%emt 0:00:30]} g6 {[%emt 0:00:30]} 4. d4 {[%emt 0:00:30]} Bg7 {[%emt 0:00:30]} 5. O-O {[%emt 0:00:30]} O-O {[%emt 0:00:30]} 6. c3 {[%emt 0:00:30]} c6 {[%emt 0:00:30]} 7. Re1 {[%emt 0:00:30]} a5 {[%emt 0:00:30]} 8. Bf4 {[%emt 0:00:30]} Qb6 {[%emt 0:00:30]} 9. Qb3 {[%emt 0:00:30]} Nbd7 {[%emt 0:00:30]} 10. Nbd2 {[%emt 0:00:30]} a4 {[%emt 0:00:30]} 11. Qa3 {[%emt 0:00:30]} Re8 {[%emt 0:00:30]} 12. c4 {[%emt 0:00:30]} Ne4 {[%emt 0:00:30]} 13. Rac1 {[%emt 0:00:30]} Nxd2 {[%emt 0:00:30]} 14. Bxd2 {[%emt 0:00:30]} e5 {[%emt 0:00:30]} 15. cxd5 {[%emt 0:00:30]} cxd5 {[%emt 0:00:30]} 16. dxe5 {[%emt 0:00:30]} Nxe5 {[%emt 0:00:30]} 17. Nxe5 {[%emt 0:00:30]} Bxe5 {[%emt 0:00:30]} 18. Bxd5 {[%emt 0:00:30]} Bxb2 {[%emt 0:00:30]} 19. Qf3 {[%emt 0:00:30]} Be6 {[%emt 0:00:30]} 20. Rb1 {[%emt 0:00:30]} Bxd5 {[%emt 0:00:30]} 21. Qxd5 {[%emt 0:00:30]} Rad8 {[%emt 0:00:30]} 22. Qg5 {[%emt 0:00:30]} Qd4 {[%emt 0:00:30]} 23. Be3 {[%emt 0:00:30]} Qc3 {[%emt 0:00:30]} 24. Qb5 {[%emt 0:00:30]} a3 {[%emt 0:00:30]} 25. Rbd1 {[%emt 0:00:30]} Qc6 {[%emt 0:00:30]} 26. Qxc6 {[%emt 0:00:30]} bxc6 {[%emt 0:00:30]} 27. Kf1 {[%emt 0:00:30]} f5 {[%emt 0:00:30]} 28. Rd3 {[%emt 0:00:30]} Rd5 {[%emt 0:00:30]} 29. Red1 {[%emt 0:00:30]} Red8 {[%emt 0:00:30]} 30. Bc5 {[%emt 0:00:30]} Rxd3 {[%emt 0:00:30]} 31. Rxd3 {[%emt 0:00:30]} Rxd3 {[%emt 0:00:30]} 32. exd3 {[%emt 0:00:30]} Kf7 33. Ke2 {[%emt 0:00:30]} Ke6 {[%emt 0:01:00]} 34. f3 {[%emt 0:00:30]} Kd5 {[%emt 0:00:30]} 35. Be7 {[%emt 0:00:30]} c5 {[%emt 0:00:30]} 36. Bg5 {[%emt 0:00:30]} c4 {[%emt 0:00:30]} 37. dxc4+ {[%emt 0:00:30]} Kxc4 {[%emt 0:00:30]} 38. Kd2 {[%emt 0:00:30]} Bc3+ {[%emt 0:00:30]} 39. Kc2 {[%emt 0:00:30]} Bb4 {[%emt 0:00:30]} 40. Bf6 {[%emt 0:00:30]} Bd6 {[%emt 0:00:30]} 41. Kd2 {[%emt 0:00:30]} Bc5 {[%emt 0:00:30]} 42. h3 {[%emt 0:00:30]} h5 {[%emt 0:00:30]} 43. Be5 {[%emt 0:00:30]} Kd5 {[%emt 0:00:30]} 44. Bf4 {[%emt 0:00:30]} Kc4 {[%emt 0:00:30]} 45. Be5 {[%emt 0:00:30]} Kd5 {[%emt 0:00:30]} 46. Bf4 {[%emt 0:00:30]} Kc4 {[%emt 0:00:30]} 1/2-1/2